{"text_format":"1","workbook":"xlsx","n_sheets":2,"sheets":["Sheet1","Forsendur"],"not_rendered":{"charts":0,"images":0,"macros":1,"external_links":0,"defined_names":3,"comments":0,"pivot_tables":0},"unopened":[],"bounds":{"document_bytes":16777216,"sheet_cells":100000,"rows_first":2000,"rows_last":500,"rows_between":2000,"halvings":0,"cell_chars":16384,"cell_head_chars":4096},"cells_cut":0,"cells_raw":0,"read":"whole","date_system":"1900"}

{"sheet":"Sheet1","index":0,"n_rows":54,"n_cols":10,"rows_kept":54,"cut":false,"hidden":false,"merged":[[32,5,32,6],[32,2,32,4],[53,5,53,6],[53,7,53,8],[50,7,50,8],[52,5,52,6],[45,2,45,4],[46,2,46,4],[47,2,47,4],[48,0,53,4],[48,5,48,8],[50,5,50,6],[41,2,41,4],[42,2,42,4],[43,2,43,4],[44,2,44,4],[40,2,40,4],[31,2,31,4],[25,2,25,4],[26,2,26,4],[27,2,27,4],[28,2,28,4],[29,2,29,4],[30,2,30,4],[35,2,35,4],[36,2,36,4],[37,2,37,4],[38,2,38,4],[39,2,39,4],[45,5,45,6],[46,5,46,6],[47,5,47,6],[20,2,20,4],[21,2,21,4],[22,2,22,4],[23,2,23,4],[24,2,24,4],[34,5,34,6],[34,2,34,4],[33,5,33,6],[33,2,33,4],[39,5,39,6],[40,5,40,6],[41,5,41,6],[42,5,42,6],[43,5,43,6],[44,5,44,6],[38,5,38,6],[35,5,35,6],[36,5,36,6],[37,5,37,6],[29,5,29,6],[30,5,30,6],[31,5,31,6],[20,5,20,6],[21,5,21,6],[22,5,22,6],[23,5,23,6],[24,5,24,6],[25,5,25,6],[26,5,26,6],[27,5,27,6],[28,5,28,6],[2,4,3,8],[19,2,19,4],[19,5,19,6],[14,0,14,1],[6,0,9,8],[16,2,16,6],[12,1,12,3],[13,1,13,3],[14,2,14,3],[14,4,14,5],[12,5,12,8],[13,5,13,8],[14,6,14,8]]}
["Skilist í tvíriti / To be rendered in duplicate",null,null,null,null,null,null,null,"Ver. 2.0"]
[null,null,null,null,null,null,null,"ES5 rev 2"]
[null,null,null,null,"Umsókn um endurgreiðslu virðisaukaskatts\nApplication for refund of value added tax"]
[]
[]
[null,null,null,null,null,null,"Dagsetning - Date",{"$f":"TODAY()","v":"2023-10-25"}]
["It is hereby certified that the below specified goods comply with regulation No. 470/1991 of 23 September 1991 set by the Ministry of Finance, on the reimbursement af VAT to foreign diplomats, with subsequent amendments."]
[]
[]
[]
[]
["Umsækjandi / Applicant:"]
["Nafn / Name:",null,null,null,"Sendiráð / Mission:"]
["Titill / Title:",null,null,null,"Reikningsnúmer / Account number:"]
["Kennitala / ID numer of applicant",null,null,null,"Heimilisfang / Address:"]
[]
[]
[null,null,"Signature of Mission´s authorized signatory & official stamp"]
[]
["Reikn. nr. / Invoice no","Dagetning / Date","Sundurliðun vörukaupa / Specifications of goods purchased",null,null,"Upphæð / Amount",null,"VSK 24%","VSK 11%","Type 1 for 24% or 2 for 11%"]
[null,null,null,null,null,null,null,{"$f":"IF(J21=1,F21*VSK_24,\"\")","v":""},{"$f":"IF(J21=2,F21*VSK_11,\"\")","v":""}]
[null,null,null,null,null,null,null,"",""]
[null,null,null,null,null,null,null,"",""]
[null,null,null,null,null,null,null,"",""]
[null,null,null,null,null,null,null,"",""]
[null,null,null,null,null,null,null,"",""]
[null,null,null,null,null,null,null,"",""]
[null,null,null,null,null,null,null,"",""]
[null,null,null,null,null,null,null,"",""]
[null,null,null,null,null,null,null,"",""]
[null,null,null,null,null,null,null,"",""]
[null,null,null,null,null,null,null,"",""]
[null,null,null,null,null,null,null,"",""]
[null,null,null,null,null,null,null,"",""]
[null,null,null,null,null,null,null,"",""]
[null,null,null,null,null,null,null,"",""]
[null,null,null,null,null,null,null,"",""]
[null,null,null,null,null,null,null,"",""]
[null,null,null,null,null,null,null,"",""]
[null,null,null,null,null,null,null,"",""]
[null,null,null,null,null,null,null,"",""]
[null,null,null,null,null,null,null,"",""]
[null,null,null,null,null,null,null,"",""]
[null,null,null,null,null,null,null,"",""]
[null,null,null,null,null,null,null,"",""]
[null,null,null,null,null,null,null,"",""]
[null,null,null,null,null,null,null,"",""]
[null,null,null,null,null,null,null,"",""]
["Fyrir utanríkisráðuneytið / For the Ministry for Foreign Affairs",null,null,null,null,"Fjármálaráðuneyti / Ministry of Finance"]
[null,null,null,null,null,"Viðfangsefni",null,"Tegund"]
[null,null,null,null,null,9910010135,null,414147]
[null,null,null,null,null,"Kennitala"]
[null,null,null,null,null,{"$f":"C15","v":0},null,"Samtals:"]
[null,null,null,null,null,"Total:",null,{"$f":"SUM(H21:H48,I21:I48)","v":0}]

{"sheet":"Forsendur","index":1,"n_rows":4,"n_cols":3,"rows_kept":4,"cut":false,"hidden":true,"merged":[]}
[]
[]
[null,"VSK af 24%",0.193548]
[null,"VSK 11%",9.9099000000000007E-2]